bitfinex-derivatives/quotes_ETHF0:USTF0_20260125
["timestamp","ask_amount","ask_price","bid_price","bid_amount"]
[1769321813106,4.53186294,2940.3,2938.8,0.15273463]
[1769321813307,4.53186294,2940.2,2938.8,0.15273463]
[1769321813501,4.53186294,2940.1,2938.8,0.15273463]
[1769321813707,1.998,2940.8,2938.8,0.15273463]
[1769321813907,4.50939706,2940.7,2938.8,0.15273463]
[1769321814213,4.50939706,2940.6,2938.8,0.15273463]
[1769321814409,4.50939706,2940.5,2938.8,0.15273463]
[1769321814614,4.50939706,2940.4,2938.8,0.15273463]
[1769321814814,4.50939706,2940.3,2938.8,0.15273463]
[1769321815110,4.50939706,2940.2,2938.8,0.15273463]
[1769321815311,1.998,2940.8,2939.2,0.15300895]
[1769321815515,4.50843154,2940.7,2939.2,0.15300895]
[1769321815713,4.50843154,2940.6,2939.2,0.15300895]
[1769321816015,4.50843154,2940.5,2939.2,0.15300895]
[1769321816313,4.50843154,2940.4,2939.2,0.15300895]
[1769321816614,1.998,2940.8,2939.2,0.15300895]
[1769321816806,4.50863856,2940.7,2939.2,0.15300895]
[1769321817003,4.50863856,2940.6,2939.2,0.15300895]
[1769321817209,1.998,2940.8,2939.2,0.15300895]
[1769321817411,4.50692478,2940.7,2939.2,0.15300895]
[1769321817607,4.50692478,2940.6,2939.4,0.15274688]
[1769321817814,1.998,2940.8,2939.4,0.15274688]
[1769321818008,4.50691782,2940.7,2939.4,0.15274688]
[1769321818214,4.50691782,2940.6,2939.4,0.15274688]
[1769321818515,0.00262174,2941.0,2939.4,0.15274688]
[1769321818714,4.50543716,2940.9,2939.4,0.15274688]
[1769321818906,4.50543716,2940.8,2939.4,0.15274688]
[1769321819108,0.00262174,2941.0,2939.4,0.15274688]
[1769321819109,4.50543716,2940.7,2939.4,0.15274688]
[1769321819408,0.00262174,2941.0,2939.4,0.15274688]
[1769321819613,4.50422508,2940.9,2939.4,0.15274688]
[1769321819814,4.50422508,2940.8,2939.4,0.15274688]
[1769321820013,4.50422508,2940.7,2939.5,0.78652366]
[1769321820203,0.00262174,2941.0,2939.6,0.15200496]
[1769321820408,4.50406416,2940.9,2939.6,0.15200496]
[1769321820613,4.50406416,2940.8,2939.6,0.15200496]
[1769321820814,4.50406416,2940.7,2939.6,0.15200496]
[1769321821014,0.00262174,2941.0,2939.6,0.15200496]
[1769321821316,4.50310608,2940.9,2939.6,0.15200496]
[1769321821516,4.50310608,2940.8,2939.6,0.15200496]
[1769321821810,4.50310608,2940.7,2939.6,0.15200496]
[1769321822002,0.00262174,2941.0,2939.6,0.15200496]
[1769321822208,4.50264775,2940.9,2939.6,0.15200496]
[1769321822414,4.50264775,2940.8,2939.6,0.15200496]
[1769321822615,0.00262174,2941.0,2939.6,0.15200496]
[1769321822808,4.50284398,2940.9,2939.6,0.15200496]
[1769321823007,0.00262174,2941.0,2939.6,0.93852862]
[1769321823214,4.50356204,2940.9,2939.7,0.15138731]
[1769321823415,0.00262174,2941.0,2939.7,0.15138731]
[1769321823611,4.50359035,2940.9,2939.7,0.15138731]
[1769321823810,0.00262174,2941.0,2939.7,0.15138731]
[1769321824010,4.503597,2940.9,2939.7,0.15138731]
[1769321824211,0.00262174,2941.0,2939.7,0.15138731]
[1769321824411,4.50247589,2940.9,2939.7,0.15138731]
[1769321824615,0.00262174,2941.0,2939.7,0.15138731]
[1769321824814,4.50247517,2940.9,2939.7,0.15138731]
[1769321825014,0.00262174,2941.0,2939.7,0.15138731]
[1769321826916,0.00262174,2941.0,2940.1,0.78650971]
[1769321829423,0.00262174,2941.0,2939.9,0.93772608]
[1769321832020,0.78650971,2940.7,2939.4,0.15095836]
[1769321832227,0.78650971,2940.7,2939.4,0.93746807]
[1769321833324,0.78650971,2940.9,2939.4,0.93746807]
[1769321833621,4.49992698,2940.8,2939.4,0.93746807]
[1769321833822,0.78650971,2940.9,2939.4,0.93746807]
[1769321834022,4.46505562,2940.8,2939.4,0.93746807]
[1769321834323,0.78650971,2940.9,2939.4,0.93746807]
[1769321834523,4.46555797,2940.8,2939.4,0.93746807]
[1769321834725,0.78650971,2940.9,2939.4,0.93746807]
[1769321834921,4.46555857,2940.8,2939.4,0.93746807]
[1769321835120,0.78650971,2940.9,2939.4,0.93746807]
[1769321835422,0.78650971,2940.7,2939.4,0.93746807]
[1769321835622,4.46587684,2940.6,2939.4,0.93746807]
[1769321835824,0.78650971,2940.7,2939.4,0.15095836]
[1769321836124,0.78650971,2940.5,2939.4,0.15095836]
[1769321839127,0.78650971,2940.5,2939.2,0.78650971]
[1769321839328,4.46812044,2940.4,2939.2,0.78650971]
[1769321839621,0.78650971,2940.3,2939.0,0.78650971]
[1769321839829,0.78913145,2941.0,2938.3,0.15219838]
[1769321839830,0.78650971,2939.1,2938.3,0.15219838]
[1769321840026,0.78650971,2939.3,2938.3,0.15219838]
[1769321840224,0.78650971,2938.8,2937.6,0.1521791]
[1769321841223,0.78981207,2938.8,2937.6,0.1561695]
[1769321841623,0.00330236,2938.8,2937.6,0.1561695]
[1769321842023,0.00330236,2938.8,2937.8,0.78650971]
[1769321844329,0.00330236,2938.8,2937.8,0.93735399]
[1769321844534,0.00330236,2938.8,2937.9,0.15084428]
[1769321844736,0.00330236,2938.8,2938.0,0.93735399]
[1769321846036,0.00330236,2938.8,2938.3,0.15159495]
[1769321846334,0.78650971,2939.8,2938.5,0.15159495]
[1769321847135,0.78925205,2939.8,2938.5,0.15159495]
[1769321847826,0.78650971,2939.6,2938.5,0.15159495]
[1769321848022,0.78650971,2939.6,2938.2,0.78650971]
[1769321848634,0.78650971,2939.4,2938.1,0.15215117]
[1769321853937,0.78650971,2939.2,2938.1,0.15215117]
[1769321864142,0.78650971,2939.0,2937.7,0.15257572]
[1769321864640,0.78650971,2939.0,2937.8,0.93908543]
[1769321864841,0.78650971,2939.2,2937.8,0.93908543]
[1769321865042,0.78650971,2939.2,2937.9,0.15257572]
[1769321865238,0.78650971,2939.4,2938.0,0.93908543]
[1769321865436,4.45706837,2939.3,2938.0,0.93908543]
[1769321865636,4.45706837,2939.2,2938.0,0.93908543]
[1769321865841,0.78650971,2939.4,2938.0,0.93908543]
[1769321866042,4.45706933,2939.3,2938.0,0.93908543]
[1769321866240,4.45706933,2939.2,2938.0,0.93908543]
[1769321866543,4.45706933,2939.1,2938.0,0.93908543]
[1769321866746,0.78650971,2939.4,2938.0,0.93908543]
[1769321866946,4.45946777,2939.3,2938.0,0.93908543]
[1769321867143,5.24597748,2939.2,2938.0,0.15257572]
[1769321867445,4.45946777,2939.1,2938.0,0.15257572]
[1769321867741,0.78650971,2938.8,2937.6,0.15686161]
[1769321869144,4.47299435,2938.7,2937.6,0.15686161]
[1769321869442,4.47299435,2938.6,2937.6,0.94337132]
[1769321869644,0.78650971,2939.0,2937.6,0.94337132]
[1769321869845,4.47299455,2938.9,2937.6,0.94337132]
[1769321870048,4.47299455,2938.8,2937.6,0.94337132]
[1769321870346,4.47299455,2938.7,2937.6,0.94337132]
[1769321870545,4.47299455,2938.6,2937.6,0.94337132]
[1769321870744,0.78650971,2939.0,2937.6,0.94337132]
[1769321870943,4.47372081,2938.9,2937.6,0.94337132]
[1769321871142,4.47372081,2938.8,2937.6,0.94337132]
[1769321871346,4.47372081,2938.7,2937.6,0.94337132]
[1769321871545,4.47372081,2938.6,2937.6,0.94337132]
[1769321871845,0.78650971,2939.0,2937.6,0.94337132]
[1769321872049,4.47342572,2938.9,2937.6,0.94337132]
[1769321872236,4.47342572,2938.8,2937.6,0.94337132]
[1769321872435,4.47342572,2938.7,2937.6,0.94337132]
[1769321872639,4.47342572,2938.6,2937.6,0.94337132]
[1769321872838,4.47342572,2938.5,2937.6,0.94337132]
[1769321873044,0.78650971,2939.0,2937.6,0.94337132]
[1769321873246,4.47272074,2938.9,2937.6,0.94337132]
[1769321873446,4.47272074,2938.8,2937.6,0.94337132]
[1769321873647,4.47272074,2938.7,2937.6,0.94337132]
[1769321873848,4.47272074,2938.6,2937.6,0.94337132]
[1769321874055,0.78650971,2939.0,2937.6,0.94337132]
[1769321874056,4.47272074,2938.5,2937.6,0.94337132]
[1769321874355,0.78650971,2939.0,2937.6,0.94337132]
[1769321874558,4.47265512,2938.9,2937.6,0.94337132]
[1769321874748,4.47265512,2938.8,2937.6,0.94337132]
[1769321874949,4.47265512,2938.7,2937.6,0.94337132]
[1769321875151,4.47265512,2938.6,2937.6,0.94337132]
[1769321875352,4.47265512,2938.5,2937.6,0.94337132]
[1769321875550,0.78650971,2939.0,2937.6,0.94337132]
[1769321875856,4.47237418,2938.9,2937.6,0.94337132]
[1769321876152,4.47236306,2938.8,2937.6,0.94337132]
[1769321876359,4.47236306,2938.7,2937.6,0.15686161]
[1769321876562,4.47236306,2938.6,2937.6,0.15686161]
[1769321876857,4.47236306,2938.5,2937.6,0.15686161]
[1769321877061,0.78650971,2938.8,2937.6,0.15686161]
[1769321877260,4.4721081,2938.7,2937.6,0.15686161]
[1769321877458,4.4721081,2938.6,2937.6,0.15686161]
[1769321877657,4.4721081,2938.5,2937.6,0.15686161]
[1769321877861,0.78650971,2938.8,2937.6,0.15686161]
[1769321878060,4.47210709,2938.7,2937.6,0.15686161]
[1769321878262,4.47210709,2938.6,2937.6,0.15686161]
[1769321878463,4.47210709,2938.5,2937.6,0.15686161]
[1769321878663,0.78650971,2938.8,2937.6,0.15686161]
[1769321878854,4.47215571,2938.7,2937.6,0.15686161]
[1769321879051,4.47215571,2938.6,2937.6,0.15686161]
[1769321879260,4.47215571,2938.5,2937.6,0.15686161]
[1769321879460,0.78650971,2938.8,2937.6,0.0039904]
[1769321879660,0.78650971,2938.6,2937.6,0.0039904]
[1769321879860,4.47189394,2938.5,2937.6,0.0039904]
[1769321880060,4.47189394,2938.4,2937.6,0.0039904]
[1769321880364,0.78650971,2938.6,2937.6,0.0039904]
[1769321880662,4.47174515,2938.5,2937.6,0.0039904]
[1769321880863,5.25825486,2938.4,2937.2,0.15173651]
[1769321881059,4.47174515,2938.3,2937.2,0.15173651]
[1769321881268,4.47174515,2938.3,2937.0,0.78650971]
[1769321881461,0.78650971,2938.2,2937.0,0.78650971]
[1769321881657,4.47174515,2938.1,2937.0,0.78650971]
[1769321881858,4.47174515,2938.0,2937.0,0.79070727]
[1769321882163,0.78650971,2938.2,2937.0,0.79070727]
[1769321882463,4.46847019,2938.1,2937.0,0.79070727]
[1769321882658,4.46847019,2938.0,2937.0,0.79070727]
[1769321882852,0.78650971,2938.4,2937.0,0.94222417]
[1769321883059,4.47088718,2938.3,2937.0,0.94222417]
[1769321883362,4.47088718,2938.2,2937.2,0.93802661]
[1769321883565,4.47088718,2938.1,2937.2,0.93802661]
[1769321883862,0.78650971,2938.6,2937.2,0.93802661]
[1769321884164,0.17043,2938.2,2936.0,0.05925527]
[1769321884368,0.78650971,2937.4,2936.1,0.15207518]
[1769321884569,4.6398423,2938.1,2936.3,0.93858489]
[1769321884570,0.78650971,2937.6,2936.3,0.93858489]
[1769321884769,4.46732372,2937.5,2936.4,0.15207518]
[1769321885067,2.78450971,2937.8,2936.4,0.15207518]
[1769321885257,0.78650971,2937.6,2936.4,0.15476379]
[1769321885457,0.78650971,2937.6,2936.4,0.00268861]
[1769321885458,4.46333328,2937.5,2936.4,0.00268861]
[1769321885766,4.46333328,2937.4,2936.4,0.00268861]
[1769321885965,0.78650971,2937.6,2936.4,0.00268861]
[1769321886265,2.00166036,2937.8,2935.5,0.15462253]
[1769321886266,0.1705,2937.1,2935.5,0.15462253]
[1769321886470,4.46300472,2937.0,2936.2,0.78650971]
[1769321886764,4.46300472,2936.9,2936.0,0.78650971]
[1769321886964,1.999,2937.3,2935.9,0.15462253]
[1769321887159,4.45812016,2937.2,2935.9,0.00292749]
[1769321887364,4.45812016,2937.1,2935.9,0.00292749]
[1769321887664,4.45812016,2937.0,2935.9,0.00292749]
[1769321887967,1.999,2937.3,2935.9,0.00292749]
[1769321888166,4.45228334,2937.2,2935.9,0.00292749]
[1769321888366,1.999,2937.3,2935.9,0.00292749]
[1769321888367,4.45228334,2937.1,2935.9,0.00292749]
[1769321888568,4.45228334,2937.0,2935.9,0.00292749]
[1769321888763,1.999,2937.3,2935.9,0.00292749]
[1769321888961,4.44796884,2937.2,2935.9,0.00292749]
[1769321889162,4.44796884,2937.1,2935.9,0.00292749]
[1769321889462,1.999,2937.3,2935.9,0.00292749]
[1769321889770,4.44451814,2937.2,2935.9,0.00292749]
[1769321889972,4.44451814,2937.1,2935.9,0.00292749]
[1769321890171,1.999,2937.3,2935.9,0.00292749]
[1769321890372,4.44174389,2937.2,2935.9,0.00292749]
[1769321890564,4.44174389,2937.1,2935.9,0.00292749]
[1769321890872,0.00366036,2937.8,2935.9,0.15735396]
[1769321891068,6.44144085,2937.7,2935.9,0.15735396]
[1769321891267,4.44244085,2937.6,2935.9,0.15735396]
[1769321891466,1.999,2937.7,2935.9,0.15735396]
[1769321891774,4.44149506,2937.6,2935.9,0.15735396]
[1769321892072,1.999,2937.7,2935.9,0.15735396]
[1769321894172,1.999,2937.7,2936.1,0.15360233]
[1769321902578,1.999,2937.7,2935.9,0.00292749]
[1769321902579,4.44765189,2937.6,2935.9,0.00292749]
[1769321902781,4.44765189,2937.5,2935.9,0.00292749]
[1769321903082,4.44817953,2937.4,2935.9,0.00292749]
[1769321903272,2.78773764,2937.7,2935.9,0.00292749]
[1769321903469,4.44817848,2937.6,2935.9,0.00292749]
[1769321903680,4.44817848,2937.5,2935.9,0.00292749]
[1769321903880,4.44817848,2937.4,2935.9,0.00292749]
[1769321904084,2.78773764,2937.7,2935.9,0.00292749]
[1769321904285,4.4492457,2937.6,2935.9,0.00292749]
[1769321904483,4.4492457,2937.5,2935.9,0.00292749]
[1769321904782,4.4492457,2937.4,2935.9,0.00292749]
[1769321904986,2.78773764,2937.7,2935.9,0.00292749]
[1769321905171,4.4492313,2937.6,2935.9,0.00292749]
[1769321905371,4.4492313,2937.5,2935.9,0.00292749]
[1769321905572,4.4492313,2937.4,2935.9,0.00292749]
[1769321905774,4.4492313,2937.3,2935.9,0.00292749]
[1769321906084,4.4492313,2937.2,2935.9,0.00292749]
[1769321906285,2.95819764,2937.7,2935.9,0.00292749]
[1769321906581,4.45163215,2937.6,2935.9,0.00292749]
[1769321906782,4.45163215,2937.5,2935.9,0.00292749]
[1769321907084,4.45163215,2937.4,2935.9,0.00292749]
[1769321907274,4.45163215,2937.3,2935.9,0.00292749]
[1769321907475,4.45163215,2937.2,2935.9,0.00292749]
[1769321907685,2.95819764,2937.7,2935.9,0.00292749]
[1769321907882,4.45342837,2937.6,2935.9,0.00292749]
[1769321908078,4.45342837,2937.5,2935.9,0.00292749]
[1769321908278,4.45342837,2937.4,2935.9,0.00292749]
[1769321908478,4.45342837,2937.3,2935.9,0.00292749]
[1769321908683,4.45342837,2937.2,2935.9,0.00292749]
[1769321908881,4.45342837,2937.1,2935.9,0.00292749]
[1769321909085,4.45837338,2937.0,2935.9,0.00292749]
[1769321909282,2.95819764,2937.7,2935.9,0.00292749]
[1769321909477,4.45837352,2937.6,2935.9,0.00292749]
[1769321909687,4.45837352,2937.5,2935.9,0.00292749]
[1769321909885,4.45837352,2937.4,2935.9,0.00292749]
[1769321910081,4.45837352,2937.3,2935.9,0.00292749]
[1769321910286,4.45837352,2937.2,2935.9,0.00292749]
[1769321910583,4.45837352,2937.1,2935.9,0.00292749]
[1769321910786,4.45837352,2937.0,2935.9,0.00292749]
[1769321910987,2.95819764,2937.7,2935.9,0.00292749]
[1769321911181,4.46072218,2937.6,2935.9,0.00292749]
[1769321911382,4.46072218,2937.5,2935.9,0.00292749]
[1769321911585,4.46072218,2937.4,2935.9,0.00292749]
[1769321911789,4.46072218,2937.3,2935.9,0.00292749]
[1769321911990,4.46072218,2937.2,2935.9,0.00292749]
[1769321912194,4.46072218,2937.1,2935.9,0.00292749]
[1769321912489,4.46072218,2937.0,2935.9,0.00292749]
[1769321912690,4.46072218,2936.9,2935.9,0.00292749]
[1769321912891,2.95819764,2937.7,2935.9,0.00292749]
[1769321913189,4.46236953,2937.6,2935.9,0.00292749]
[1769321913388,4.46236953,2937.5,2935.9,0.00292749]
[1769321913691,4.46236953,2937.4,2935.9,0.00292749]
[1769321913888,4.46236953,2937.3,2935.9,0.00292749]
[1769321914187,4.46236953,2937.2,2935.9,0.00292749]
[1769321914389,4.46236953,2937.1,2935.9,0.15549255]
[1769321914580,2.16946,2937.7,2936.0,0.15256506]
[1769321914778,4.46782052,2937.6,2936.0,0.15256506]
[1769321914981,4.46782052,2937.5,2936.0,0.15256506]
[1769321915288,4.46782052,2937.4,2936.0,0.15256506]
[1769321915488,4.46782052,2937.3,2936.0,0.15256506]
[1769321915691,4.46782052,2937.2,2936.0,0.15256506]
[1769321915990,2.16946,2937.7,2936.0,0.15256506]
[1769321916189,4.46831557,2937.6,2936.0,0.15256506]
[1769321916383,4.46831557,2937.5,2936.0,0.15256506]
[1769321916583,4.46831557,2937.4,2936.0,0.15256506]
[1769321916886,2.16946,2937.7,2936.0,0.15256506]
[1769321916887,4.46831557,2937.3,2936.0,0.15256506]
[1769321917087,4.46831557,2937.2,2936.0,0.15256506]
[1769321917285,2.16946,2937.7,2936.0,0.15256506]
[1769321917486,4.46884963,2937.6,2936.0,0.15256506]
[1769321917684,4.46884963,2937.5,2936.0,0.15256506]
[1769321917884,4.46884963,2937.4,2936.0,0.15256506]
[1769321918088,4.46884963,2937.3,2936.0,0.15256506]
[1769321918288,4.46884963,2937.2,2936.0,0.15256506]
[1769321918493,2.16946,2937.7,2936.0,0.15256506]
[1769321918696,4.46936379,2937.6,2936.0,0.15256506]
[1769321918886,4.46936379,2937.5,2936.0,0.15256506]
[1769321919081,4.46936379,2937.4,2936.0,0.15256506]
[1769321919290,4.46936379,2937.3,2936.0,0.15256506]
[1769321919489,4.46936379,2937.2,2936.0,0.15256506]
[1769321919689,0.00366036,2937.8,2936.4,0.15253042]
[1769321919994,4.47039902,2937.7,2936.4,0.15253042]
[1769321920290,4.47039902,2937.6,2936.4,0.15253042]
[1769321920490,4.47039902,2937.5,2936.4,0.15253042]
[1769321920694,4.47039902,2937.4,2936.4,0.15253042]
[1769321920895,0.00366036,2937.8,2936.4,0.15253042]
[1769321921191,4.47121152,2937.7,2936.4,0.15253042]
[1769321921491,4.47121152,2937.6,2936.4,0.15253042]
[1769321921693,4.47121152,2937.5,2936.4,0.15253042]
[1769321921996,0.00366036,2937.8,2936.4,0.15253042]
[1769321922199,4.44975291,2937.7,2936.4,0.15253042]
[1769321922397,4.44975291,2937.6,2936.4,0.15253042]
[1769321922599,0.00366036,2937.8,2936.4,0.15253042]
[1769321922899,4.44973061,2937.7,2936.4,0.15253042]
[1769321923094,4.44973061,2937.6,2936.4,0.15253042]
[1769321923295,0.00366036,2937.8,2936.4,0.15253042]
[1769321923494,4.44927354,2937.7,2936.4,0.15253042]
[1769321923696,4.44927354,2937.6,2936.4,0.15253042]
[1769321923894,0.00366036,2937.8,2936.8,0.15213518]
[1769321931700,0.00366036,2937.8,2936.8,2.15113518]
[1769321934001,0.00366036,2937.8,2936.9,0.15319323]
[1769321939210,0.00366036,2937.8,2936.9,2.15219323]
[1769321940311,0.00366036,2937.8,2936.9,0.15319323]
[1769321948918,0.00366036,2937.8,2937.4,0.15384791]
[1769321949230,0.78804157,2938.6,2937.4,0.15384791]
[1769321949410,4.45097163,2938.5,2937.4,0.15384791]
[1769321949714,4.45097163,2938.5,2937.3,0.78804157]
[1769321949715,4.45097163,2938.4,2937.6,0.15384791]
[1769321949917,0.78804157,2938.8,2937.6,0.15384791]
[1769321950106,4.45131039,2938.7,2937.6,0.15384791]
[1769321950310,4.45131039,2938.6,2937.6,0.15384791]
[1769321950515,4.45131039,2938.5,2937.6,0.15384791]
[1769321950715,4.45131039,2938.4,2937.6,0.15384791]
[1769321950916,4.45131039,2938.4,2937.0,0.78804157]
[1769321950917,4.45131039,2938.4,2937.7,0.94166794]
[1769321951214,0.00238962,2938.8,2937.8,0.15362637]
[1769321951514,4.45248308,2938.7,2937.8,0.15362637]
[1769321951719,4.45248308,2938.6,2937.8,0.15362637]
[1769321951913,4.45248308,2938.5,2937.8,0.15362637]
[1769321952114,0.00238962,2938.8,2937.8,0.15362637]
[1769321952311,4.45187552,2938.7,2937.8,0.15362637]
[1769321952512,4.45187552,2938.6,2937.8,0.15362637]
[1769321952712,0.00238962,2938.8,2937.8,0.15362637]
[1769321952915,4.45187352,2938.7,2937.8,0.15362637]
[1769321953113,4.45187352,2938.6,2937.8,0.15362637]
[1769321953415,0.00238962,2938.8,2937.8,0.15362637]
[1769321953619,4.45178352,2938.7,2937.8,0.15362637]
[1769321953818,4.45178352,2938.6,2937.8,0.15362637]
[1769321954121,0.00238962,2938.8,2938.0,0.15355999]
[1769321954316,0.00238962,2938.8,2938.2,0.15355999]
[1769321959420,6.386,2939.7,2938.6,0.15432867]
[1769321959722,4.43279274,2939.6,2938.6,0.15432867]
[1769321959923,4.43279274,2939.5,2938.6,0.15432867]
[1769321960125,4.43279274,2939.4,2938.6,0.15432867]
[1769321960320,0.00293601,2939.4,2938.6,0.15432867]
[1769321969228,0.00293601,2939.4,2938.8,0.15507561]
[1769321969728,1.999,2940.0,2939.0,0.15360761]
[1769321969928,4.42381967,2939.9,2939.0,0.15360761]
[1769321970128,4.42381967,2939.8,2939.0,0.15360761]
[1769321970333,4.42381967,2939.7,2939.0,0.15360761]
[1769321970626,0.00410286,2939.7,2939.0,0.15360761]
[1769321970825,0.00410286,2939.7,2938.6,0.78804157]
[1769321971125,0.00410286,2939.7,2938.7,0.15388693]
[1769321977132,4.43073343,2939.6,2938.7,0.15388693]
[1769321977438,0.00410286,2939.7,2938.7,0.15388693]
[1769321978132,4.4324315,2939.6,2938.7,0.15388693]
[1769321978335,0.00410286,2939.7,2938.7,0.15388693]
[1769321978532,4.43244675,2939.6,2938.7,0.15388693]
[1769321978732,0.00410286,2939.7,2938.7,0.15388693]
[1769321978937,4.43244724,2939.6,2938.7,0.15388693]
[1769321979136,0.00410286,2939.7,2938.7,0.15388693]
[1769321979438,0.00410286,2939.7,2938.9,0.15416469]
[1769321983139,0.00410286,2939.7,2939.1,0.15420968]
[1769321984343,0.78804157,2940.1,2939.1,0.15420968]
[1769321984530,4.44075668,2940.0,2939.1,0.15420968]
[1769321984839,0.78804157,2940.1,2939.1,0.15420968]
[1769321984840,4.44075668,2939.9,2939.1,0.15420968]
[1769321985140,4.44075668,2939.8,2939.1,0.15420968]
[1769321985343,4.44075668,2939.7,2939.1,0.15420968]
[1769321996245,4.44075668,2939.7,2939.2,0.1523829]
[1769321996448,0.00361243,2939.8,2939.2,0.1523829]
[1769321998143,1.998,2940.4,2939.4,0.15033445]
[1769321998450,4.44351789,2940.3,2939.4,0.15033445]
[1769321998644,1.998,2940.4,2939.4,0.15033445]
[1769321998645,4.44351789,2940.2,2939.4,0.15033445]
[1769321998844,1.998,2940.4,2939.4,0.15033445]
[1769321999051,4.44352439,2940.3,2939.4,0.15033445]
[1769321999249,4.44352439,2940.2,2939.4,0.15033445]
[1769321999449,2.00196536,2940.4,2939.4,0.15033445]
[1769321999649,4.4424128,2940.3,2939.4,0.15033445]
[1769321999843,4.4424128,2940.2,2939.4,0.15033445]
[1769322000045,2.00196536,2940.4,2939.4,0.15033445]
[1769322000349,4.442399,2940.3,2939.6,0.14990539]
[1769322000542,2.00196536,2940.4,2939.6,0.14990539]
[1769322000851,4.44240913,2940.3,2939.6,0.14990539]
[1769322001054,4.44240913,2940.3,2939.5,0.78804157]
[1769322001055,0.00396536,2940.4,2939.8,0.14990539]
[1769322002251,10.143,2941.3,2940.2,0.14790681]
[1769322002453,4.43927444,2941.2,2940.2,0.14790681]
[1769322002647,4.43927444,2941.1,2940.4,0.14790681]
[1769322002844,0.78804157,2941.6,2940.4,0.14790681]
[1769322002845,1.998,2941.6,2940.4,0.14790681]
[1769322003045,4.41922395,2941.5,2940.4,0.14790681]
[1769322003245,4.41922395,2941.4,2940.4,0.15070271]
[1769322004053,0.78804157,2941.1,2940.4,0.0027959]
[1769322004850,0.00288975,2941.5,2939.6,0.14926993]
[1769322004851,0.78804157,2940.7,2939.6,0.14926993]
[1769322005056,0.78804157,2940.5,2939.2,2.14726993]
[1769322005759,0.78804157,2940.5,2939.2,2.15108823]
[1769322006553,0.78804157,2940.9,2939.6,0.9373115]
[1769322006759,4.40721395,2940.8,2939.9,0.14926993]
[1769322006959,2.16726,2941.1,2939.9,0.14926993]
[1769322007161,4.40757003,2941.0,2939.9,0.14926993]
[1769322007351,0.00288975,2941.5,2940.2,0.78804157]
[1769322007549,4.40794492,2941.4,2940.2,0.9373115]
[1769322007855,0.78804157,2941.1,2940.2,0.14926993]
[1769322008056,0.78804157,2941.1,2939.8,0.9373115]
[1769322008455,0.78804157,2941.3,2939.9,0.14926993]
[1769322008649,0.00288975,2941.5,2940.2,0.9373115]
[1769322008650,0.79093132,2941.5,2940.2,0.9373115]
[1769322008850,4.40658628,2941.4,2940.3,0.14926993]
[1769322009063,0.00288975,2941.5,2940.3,0.14926993]
[1769322009262,4.40668648,2941.4,2940.3,0.14926993]
[1769322009460,0.00288975,2941.5,2940.3,0.14926993]
[1769322017172,0.00288975,2941.5,2940.3,2.14626993]
[1769322017378,0.00288975,2941.5,2940.4,0.14550899]
[1769322020873,0.00288975,2941.5,2940.6,0.1464259]
[1769322021874,1.997,2942.5,2940.6,0.1464259]
[1769322022074,4.39294172,2942.4,2940.6,0.1464259]
[1769322022272,4.39294172,2942.3,2940.6,0.1464259]
[1769322022466,4.39294172,2942.2,2940.7,0.14553343]
[1769322022671,4.39294172,2942.1,2940.7,0.14553343]
[1769322022875,0.00413906,2942.1,2940.7,0.14553343]
[1769322025167,4.39797271,2942.0,2940.7,0.14553343]
[1769322025371,0.00413906,2942.1,2940.7,0.14553343]
[1769322025566,0.00413906,2942.1,2940.9,0.14588561]
[1769322027872,0.00413906,2942.1,2941.2,0.78653079]
[1769322028073,0.00413906,2942.1,2941.3,0.14584002]
[1769322028269,0.00413906,2942.1,2941.3,0.14863251]
[1769322031678,6.386,2942.8,2941.3,0.14863251]
[1769322031887,4.40098813,2942.7,2941.3,0.14863251]
[1769322032088,4.40098813,2942.6,2941.3,0.14863251]
[1769322032280,4.40098813,2942.5,2941.3,0.14863251]
[1769322032476,1.997,2942.9,2941.3,0.14863251]
[1769322032681,4.40089043,2942.8,2941.3,0.14863251]
[1769322032876,4.40089043,2942.7,2941.3,0.14863251]
[1769322033083,4.40089043,2942.6,2941.3,0.14863251]
[1769322033281,4.40089043,2942.5,2941.3,0.14863251]
[1769322033486,2.00086075,2942.9,2941.3,0.14863251]
[1769322033687,4.40030386,2942.8,2941.3,0.14863251]
[1769322033986,4.40030386,2942.7,2941.3,0.14863251]
[1769322034285,4.40030386,2942.6,2941.3,0.14863251]
[1769322034482,4.40030386,2942.5,2941.3,0.14863251]
[1769322034688,4.40030386,2942.4,2941.3,0.14863251]
[1769322034989,0.17017,2942.8,2941.3,0.14863251]
[1769322035189,4.40004335,2942.7,2941.3,0.14863251]
[1769322035486,4.40004335,2942.6,2941.3,0.14863251]
[1769322035685,4.40004335,2942.5,2941.3,0.14863251]
[1769322035882,4.40004335,2942.4,2941.3,0.14863251]
[1769322036082,4.40004335,2942.3,2941.3,0.14863251]
[1769322036282,0.17017,2942.8,2941.3,0.14863251]
[1769322036478,4.40401088,2942.7,2941.3,0.14863251]
[1769322036688,5.37090052,2942.6,2941.3,0.00279249]
[1769322036889,4.40401088,2942.5,2941.3,0.00279249]
[1769322037189,4.40401088,2942.4,2941.3,0.00279249]
[1769322037486,4.40401088,2942.3,2941.3,0.00279249]
[1769322037688,4.40401088,2942.2,2941.3,0.00279249]
[1769322037990,4.40401088,2942.1,2941.3,0.00279249]
[1769322038291,4.40401088,2942.0,2941.3,0.00279249]
[1769322038484,0.96688964,2942.6,2941.3,0.00279249]
[1769322038682,4.40655726,2942.5,2941.3,0.00279249]
[1769322038883,4.40655726,2942.4,2941.3,0.00279249]
[1769322039083,4.40655726,2942.3,2941.3,0.00279249]
[1769322039283,4.40655726,2942.2,2941.3,0.00279249]
[1769322039582,6.40255726,2942.1,2940.1,0.17032]
[1769322039787,4.40655726,2942.0,2940.2,2.14194641]
[1769322039987,4.40655726,2942.0,2940.3,0.14594641]
[1769322040187,4.40655726,2942.0,2940.4,0.9324772]
[1769322040388,4.40655726,2942.0,2940.5,0.14594641]
[1769322040588,4.40655726,2942.0,2940.5,0.14878045]
[1769322040790,4.40655726,2942.0,2940.6,0.14594641]
[1769322041596,4.40655726,2942.0,2940.7,0.14300893]
[1769322042090,0.13977055,2941.9,2940.5,0.00283404]
[1769322042295,4.54632781,2941.8,2940.5,0.00283404]
[1769322042594,4.54632781,2941.7,2940.5,0.00283404]
[1769322042802,4.40655726,2941.6,2940.5,0.00283404]
[1769322043791,4.40816687,2941.5,2940.5,0.00283404]
[1769322043989,4.40816687,2941.4,2940.5,0.00283404]
[1769322044292,4.40816687,2941.3,2940.5,0.00283404]
[1769322044482,0.13977055,2941.6,2940.5,0.00283404]
[1769322044687,0.13977055,2941.4,2939.9,0.14300893]
[1769322044887,4.54841575,2941.3,2939.6,1.996]
[1769322045088,4.4086452,2941.2,2939.6,1.996]
[1769322045395,4.4086452,2941.1,2939.6,2.13900893]
[1769322045585,4.4086452,2941.0,2939.6,2.13900893]
[1769322045782,4.4086452,2940.9,2939.6,2.14267178]
[1769322045989,0.13977055,2941.3,2939.7,0.14300893]
[1769322046191,4.40637197,2941.2,2939.8,0.14300893]
[1769322046390,4.40637197,2941.1,2939.8,0.14300893]
[1769322046589,4.40637197,2941.0,2939.8,0.14300893]